Cogmind - Beta 15 @@@ ROGUE MODE // 2025.05.29 @ 15:04:22 Player: Elias Result: Destroyed by S-10 Pest with Light Assault Rifle Performance ------------- Evolutions (0) 0 Regions Visited (2) 400 Robots Destroyed (13) 65 Value Destroyed (521) 521 Prototype IDs (11) 220 Alien Tech Used (0) 0 Bonus (0) 0 TOTAL SCORE: 1206 Bonus ------- None Cogmind --------- Core Integrity 0/250 Matter 300/300 Energy 100/100 System Corruption 0% Temperature Cool (0) Movement Core (200) Ox3 Location -10/Subcaves Parts ------- > --- POWER (1) -------- (None) > --- PROPULSION (2) --- (None) > --- UTILITY (2) ------ Small Storage Unit Machine Analyzer > --- WEAPON (2) ------- Barrage Gun Makeshift Axe > --- INVENTORY (8) ---- Makeshift Light Armor Plating Scrap Shield Power Bank Subdweller Laser Subdweller Beam Cannon Assault Rifle Subdweller Machine Gun Peak State ------------ > --- POWER ------------ Subdweller Power Source > --- PROPULSION ------- Light Treads Light Treads > --- UTILITY ---------- Small Storage Unit Machine Analyzer > --- WEAPON ----------- Subdweller Machine Gun Enhanced Flamer > --- INVENTORY -------- Subdweller Power Source Makeshift Light Armor Plating Makeshift Thermal Plating Riot Gun Assault Rifle Subdweller Machine Gun Subdweller Machine Gun Makeshift Axe [Rating: 15] Favorites ----------- Power Subdweller Power Source Engine Subdweller Power Source Propulsion Light Treads Treads Light Treads Leg Aluminum Leg Utility Small Storage Unit Storage Small Storage Unit Processor Machine Analyzer Weapon Barrage Gun Energy Gun Riot Gun Ballistic Gun Barrage Gun Launcher Grenade Launcher Special Weapon Enhanced Flamer Slashing Weapon Makeshift Axe Build | -11 -10 -10 ------- Run | Yrd Mat Sub Slots Evolved . | . . . Power . | . . . Propulsion . | . . . Utility . | . . . Weapon . | . . . Parts Attached 24 | 6 . 18 Power 6 | 1 . 5 Engine 6 | 1 . 5 Core . | . . . Reactor . | . . . Propulsion 4 | 2 . 2 Treads 2 | . . 2 Leg 2 | 2 . . Wheel . | . . . Hover . | . . . Flight . | . . . Utility 2 | 1 . 1 Device . | . . . Storage 1 | 1 . . Processor 1 | . . 1 Hackware . | . . . Protection . | . . . Artifact . | . . . Weapon 12 | 2 . 10 Energy Gun 2 | . . 2 Energy Cannon . | . . . Ballistic Gun 7 | 2 . 5 Ballistic Cannon . | . . . Launcher 1 | . . 1 Special Weapon 1 | . . 1 Impact Weapon . | . . . Slashing Weapon 1 | . . 1 Piercing Weapon . | . . . Special Melee Weapon . | . . . Unidentified Prototypes . | . . . Parts Lost 11 | . . 11 Power 3 | . . 3 Propulsion 3 | . . 3 Utility . | . . . Weapon 5 | . . 5 Highest Loss Streak 4 | . . 4 To Critical Strikes . | . . . Average Backups 6 | 3 4 6 Power . | . 1 . Propulsion . | 1 2 . Utility 2 | . . 2 Weapon 3 | . 1 4 Tool/Special . | . . . Unused Backups 7 | . . 7 Power . | . . . Propulsion . | . . . Utility 4 | . . 4 Weapon 3 | . . 3 Tool/Special . | . . . Average Slot Usage (%) 79 | . 85 79 Engine 13 | . 14 13 Treads 8 | . . 8 Leg 3 | . 28 1 Storage 14 | . 14 14 Processor 12 | . . 12 Energy Gun 2 | . . 2 Ballistic Gun 19 | . 28 19 Slashing Weapon 5 | . . 5 Peak Build Rating 15 | 6 6 15 Average Rating 12 | 4 6 13 On Entrance 4 | . 6 6 Naked Turns . | . . . Heaviest Build 17 | 13 13 17 Greatest Support 40 | 20 20 40 Greatest Overweight (x) 5 | . . 5 Average Overweight (x) 1 | . . 1 Largest Inventory Capacity 8 | 8 8 8 Average Capacity 7 | 5 8 8 Most Carried 8 | 5 5 8 Average Carried 7 | 3 4 7 Final Capacity 8 | 8 8 8 Final Carried 8 | 4 5 8 Class Distribution -------------------- 100% | Mutant Dominant Class ---------------- Mutant | -10/Materials Mutant | -10/Subcaves Resources | -11 -10 -10 ----------- Run | Yrd Mat Sub Matter Collected 530 | 195 55 280 Remotely . | . . . Salvage Created 496 | . . 496 Parts 30 | . . 30 Haulers Intercepted . | . . . Recyclers Shooed . | . . . Parts Field Recycled . | . . . Retrieved Matter . | . . . Parts Self-Destructed 13 | . . 13 Prevented . | . . . Kills | -11 -10 -10 ------- Run | Yrd Mat Sub Combat Hostiles Destroyed 13 | . . 13 Guns 6 | . . 6 Cannons 2 | . . 2 AOE 4 | . . 4 Classes Destroyed 3 | . . 3 Grunt 2 | . . 2 Artisan 1 | . . 1 Subdweller 11 | . . 11 Best Kill Streak 4 | . . 4 Combat Bots Only 4 | . . 4 Max Kills in Single Turn 2 | . . 2 Gunslinging . | . . . Exploded 2 | . . 2 Melee . | . . . Uniques/NPCs Destroyed . | . . . Combat | -11 -10 -10 -------- Run | Yrd Mat Sub Hostile Shots Fired 98 | . 3 95 Missed 25 | . 1 24 Hits 73 | . 2 71 Projectile 73 | . 2 71 Damage Taken 1532 | . 16 1516 Core 254 | . . 254 Absorbed by Shields . | . . . Core Remaining (%) 100 | 100 . . Volleys Fired 60 | . . 60 Largest 2 | . . 2 Hottest 110 | . . 110 Shots Fired 97 | . . 97 Gun 88 | . . 88 Cannon . | . . . Launcher 2 | . . 2 Special 7 | . . 7 Kinetic 66 | . . 66 Thermal 7 | . . 7 Explosive 2 | . . 2 Electromagnetic 22 | . . 22 Robot Hit Streak 32 | . . 32 Robot Miss Streak 2 | . . 2 Penetration Max . | . . . Secondary Targets 1 | . . 1 Max Gunslinging Chain 1 | . . 1 Shots Hit Robots 58 | . . 58 Core Hits 25 | 1 . 24 Critical Kills . | . . . Critical Parts Destroyed . | . . . Critical Strikes 1 | . . 1 Burn 1 | . . 1 Melee Attacks 22 | . . 22 Impact . | . . . Slashing 22 | . . 22 Piercing . | . . . Sneak Attacks . | . . . Combat Hostiles . | . . . Follow-up Attacks . | . . . Damage Inflicted 986 | 6 17 963 Guns 631 | . . 631 Cannons . | . . . Explosions 256 | . . 256 Melee . | . . . Ramming 23 | 6 17 . Kinetic 473 | . . 473 Thermal 76 | . . 76 Explosive 256 | . . 256 Electromagnetic 158 | . . 158 Impact . | . . . Slashing . | . . . Piercing . | . . . Highest Corruption . | . . . Average Corruption . | . . . Corruption Purged . | . . . Corruption Blocked . | . . . Overload Shots . | . . . Overflow Damage 25 | . . 25 Projectiles . | . . . Explosions 25 | . . 25 Melee . | . . . Knockbacks 1 | . 1 . Impact 1 | . 1 . Kinetic . | . . . Secondary . | . . . Self-Inflicted Damage 76 | . . 76 Shots 2 | . . 2 Rammed . | . . . Targets Rammed 10 | 3 7 . Kicked 10 | 3 7 . Crushed . | . . . Highest Temperature 12 | . . 12 Average Temperature 4 | . . 4 Received Heat Transfer 207 | . . 207 Siege Activations . | . . . Martial Activations . | . . . Shielding Activations . | . . . Robots Disrupted . | . . . Combat Hostiles . | . . . Robots Corrupted . | . . . Combat Hostiles . | . . . Parts Fried . | . . . Impact Corruptions . | . . . Robots Melted 1 | . . 1 Combat Hostiles 1 | . . 1 Parts Melted 2 | . . 2 Heat Transferred 720 | . . 720 Parts Sabotaged . | . . . Parts Stolen . | . . . Parts Stripped . | . . . Power Chain Reactions . | . . . Alert | -11 -10 -10 ------- Run | Yrd Mat Sub Maximum Alert Level . | . . . Low Security (%) 100 | 100 100 . Level 1 . | . . . Level 2 . | . . . Level 3 . | . . . Level 4 . | . . . Level 5 . | . . . High Security . | . . . Max Security . | . . . Peak Influence . | . . . Initial . | . . . Average . | . . . Influence Increases 50 | . . 50 Destroy 0b10 Robot/C 40 | . . 40 Destroy Leader 10 | . . 10 Influence Decreases 50 | . . 50 Time Decay 40 | . . 40 Lost Part 10 | . . 10 Squads Dispatched 1 | . 1 . Investigation . | . . . Extermination . | . . . Reinforcement 1 | . 1 . Assault . | . . . Garrison . | . . . Intercept . | . . . Searches Triggered . | . . . Construction Impeded . | . . . Haulers Reinforced . | . . . Active Scanning Responses . | . . . Cargo Convoy Interrupts . | . . . Stealth | -11 -10 -10 --------- Run | Yrd Mat Sub Distress Signals . | . . . Communications Jammed . | . . . Distress Signals . | . . . Times Spotted 21 | . 4 17 Peak Tracking Total 5 | . 2 5 Tactical Retreats . | . . . Traps | -11 -10 -10 ------- Run | Yrd Mat Sub Traps Triggered 3 | . . 3 Indirectly . | . . . Trap Hack Attempts . | . . . Triggered . | . . . Disarmed . | . . . Reprogrammed . | . . . Reused . | . . . Traps Extracted . | . . . Installed . | . . . Triggered . | . . . Machines | -11 -10 -10 ---------- Run | Yrd Mat Sub Machines Disabled 1 | . . 1 Max in Single Turn 1 | . . 1 Machines Repaired . | . . . Machines Dismantled . | . . . Machines Sabotaged . | . . . Overloaded Fab Kills . | . . . Hacking | -11 -10 -10 --------- Run | Yrd Mat Sub Machines Accessed 2 | . 1 1 Terminals 1 | . 1 . Fabricators . | . . . Repair Stations . | . . . Recycling Units . | . . . Scanalyzers . | . . . Garrison Access . | . . . Total Hacks 10 | . 1 9 Successful 10 | . 1 9 Failed . | . . . Catastrophic . | . . . Database Lockouts . | . . . Manual . | . . . Terminals 1 | . 1 . Fabricators . | . . . Repair Stations . | . . . Recycling Units . | . . . Scanalyzers . | . . . Garrison Access . | . . . Terminal Hacks 10 | . 1 9 Record 8 | . . 8 Dispatch Records 1 | . 1 . Proto ID Catalog 1 | . . 1 Fabricator Hacks . | . . . Repair Station Hacks . | . . . Recycling Unit Hacks . | . . . Scanalyzer . | . . . Garrison Access Hacks . | . . . Unauthorized Hacks . | . . . Terminals . | . . . Fabricators . | . . . Repair Stations . | . . . Recycling Units . | . . . Scanalyzers . | . . . Garrison Access . | . . . Data Cores Recovered . | . . . Used . | . . . Hacking Detections . | . . . Full Trace Events . | . . . Feedback Events . | . . . Feedback Blocked . | . . . Robot Schematics Acquired . | . . . Robots Built . | . . . Authchips . | . . . Time . | . . . Total Robot Build Rating . | . . . Part Schematics Acquired . | . . . Parts Built . | . . . Authchips . | . . . Time . | . . . Total Part Build Rating . | . . . Parts Repaired . | . . . Time . | . . . Parts Recycled . | . . . Recycled Matter . | . . . Retrieved Matter . | . . . Retrieved Components . | . . . Parts Scanalyzed . | . . . Part Schematics Acquired . | . . . Parts Damaged . | . . . Bothacking | -11 -10 -10 ------------ Run | Yrd Mat Sub Used RIF Installer . | . . . Robots Hacked . | . . . Non-combat . | . . . Combat . | . . . Robot Hacks Applied . | . . . Relay Couplers Released . | . . . Fabnet Peak Effective % . | . . . Robots Rewired . | . . . Allies Hacked . | . . . Hacks Repelled . | . . . Allies | -11 -10 -10 -------- Run | Yrd Mat Sub Total Allies . | . . . Largest Group . | . . . Highest-Rated Group . | . . . Highest-Rated Ally . | . . . Total Orders . | . . . Ally Attacks . | . . . Total Damage . | . . . Kills . | . . . Allies Corrupted . | . . . Allies Melted . | . . . Intel | -11 -10 -10 ------- Run | Yrd Mat Sub Active Infowar (turns) 2809 | . . 2809 Machine Analysis 2809 | . . 2809 Robot Analysis Total . | . . . Derelict Logs Recovered 1 | . . 1 Drone Launches . | . . . Drone Recoveries . | . . . Exploration | -11 -10 -10 ------------- Run | Yrd Mat Sub Turns Passed 3256 | 100 130 3026 Spaces Moved 1636 | 79 101 1456 Core 388 | 20 . 368 Treads 938 | . . 938 Legs 310 | 59 101 150 Wheels . | . . . Hover . | . . . Flight . | . . . Fastest Speed 50 | 50 120 120 Average Speed 182 | 102 120 190 Slowest Speed 300 | 120 120 300 Overloaded Moves . | . . . Propulsion Burnouts . | . . . Robots Hopped . | . . . Potential Cave-ins . | . . . Cave-ins Triggered . | . . . Exploration Rate (%) 25 | 3 18 56 Regions Visited 2 Branch Regions 1 Pre-discovered Areas . | . . . Known Exits Taken . | . . . Unknown Exits Taken 2 | 1 1 . Scrap Searched 8 | . . 8 Spaces Dug . | . . . Terrain Destroyed 22 | . . 22 Melee . | . . . Projectile . | . . . AOE 22 | . . 22 Terrain Rammed . | . . . Walls Destroyed . | . . . Machines Disabled . | . . . Actions | -11 -10 -10 --------- Run | Yrd Mat Sub Total 1788 | 97 108 1583 Wait 7 | . . 7 Move 1635 | 79 100 1456 Hop . | . . . Pick Up 24 | 10 1 13 Fast Attach 3 | . . 3 Attach 13 | 6 . 7 Detach . | . . . Swap 8 | . . 8 Drop 7 | . . 7 Fire 60 | . . 60 Melee 22 | . . 22 Ram . | . . . Kick 9 | 2 7 . Crush . | . . . Escape Stasis . | . . . Rewire . | . . . Trap . | . . . Miscellaneous . | . . . Route ------- -11/Scrapyard -10/Materials (discovered 2 exits: [*Min] / *Sub) -10/Subcaves (discovered 1 exit: [*Mat]) History --------- Turn | Location | Event 5 | -11/Scrapyard | Discovered new exit (range 16) 101 | -11/Scrapyard | Entered Materials 102 | -10/Materials | Met a group of wandering Federalists 122 | -10/Materials | Discovered new exit (range 15) 208 | -10/Materials | Discovered new exit (range 5) 231 | -10/Materials | Entered Subcaves 231 | -10/Subcaves | Accompanied by 4 allies 232 | -10/Subcaves | Continued accompanying wandering Federalists (5) 232 | -10/Subcaves | Approached by a straggling Scientist 307 | -10/Subcaves | Build established: Mutant 371 | -10/Subcaves | Disturbed a concealed Subdweller 379 | -10/Subcaves | Lost 5 allies 397 | -10/Subcaves | Ambushed by Subdweller buried in earth 436 | -10/Subcaves | Lost 4 parts (1p1n2w) 641 | -10/Subcaves | A Subdweller sparked back to life 641 | -10/Subcaves | A Subdweller sparked back to life 641 | -10/Subcaves | A Subdweller sparked back to life 808 | -10/Subcaves | Core integrity fell below 50% 836 | -10/Subcaves | Lost 3 parts (1n2w) 855 | -10/Subcaves | Learned Materials interactive machine intel 978 | -10/Subcaves | Shifting Twisted Machinery released Sub. Beam Cannon 983 | -10/Subcaves | Shifting Twisted Machinery released Shrapnel Trap 1269 | -10/Subcaves | Ambushed by angry Subdweller bent on revenge 1290 | -10/Subcaves | Core integrity fell below 20% 2121 | -10/Subcaves | Visited 4L-MR0's lab 2155 | -10/Subcaves | Found Power Bank 3005 | -10/Subcaves | Discovered new exit (range 14) 3257 | -10/Subcaves | Destroyed by S-10 Pest with Light Assault Rifle Last Messages --------------- >>Record! "Uberlauncher" I hear [REDACTED] exploded during the installation process. I did warn them to fully install it before trying to fire, and something tells me that's where things went wrong. Still I'm glad they didn't listen, that way I'm not culpable for whatever they would've done with it. If we're lucky even some of the others got blasted, too. 02147_ Testing Chamber breached. 02150_ 4L-MR0 mumbles: "Who knows where that last prototype ended up, probably tossed aside somewhere as if it were useless junk..." 02155_ Dropped Mak. Thermal Plating. 02155_ Acquired Power Bank. 02202_ Subatomizers dissect the Sub. Laser. 02204_ Acquired 22 matter. 02217_ Subatomizers dissect the Sub. Laser. 02577_ Sub. Power Source shoots sparks and powers down. 02769_ Subatomizers dissect the Sub. Machine Gun. 03005_ EXIT=FOUND 03151_ Acquired Sub. Power Source. 03159_ Acquired 10 matter. 03235_ Sub. Power Source destroyed. Map ----- +----------------------------------------------------+ | ?????????????????????????????????????????????????? | | ????????????????????????????? ??????????????????? | | ??????????????????????????? ?????????????????? | | ??????????????????????????? ?????????????????? | | ???????????????????????????# ?????????????????? | | ??????????????????????????? ?????????????????? | | ??????????????????????????? ?????????????????? | | ???????????????????????????? #?????????????????? | | ???????????????????????????? ###???????????????? | | ???????????????????????????? #???????????????? | | ????????????????????????????? #???????????????? | | ????????????????????????????? ##??????????????? | | ?????????????????????????????# ##?????????????? | | ????????????????????????????## ##????????????? | | ???????????????????????????## %| #????????????? | | ???????????????????????????# [ =""""####?????????? | | ???????????????????????????#&=&%|""" ????????? | | ???????????????????????##??##&|%"## ??????? | | ?????????????????????# ""####*""##??????? ???????? | | ????????????????????# """"#% ""#????????????????? | | ????????????????????# """""" ##????????????????? | | ????????????# ???????# """ ##?""????? ????????? | | ???????????## ??????#####" "##" #??? ????????? | | ??????????? ????????## """" #??? ?????????? | | ?????????? #????#### """ #??? ?????????? | | ?????????? ##??# ""@ # # "" #??? ####?????? | | ??????????? #?# "s"#" # #??? ??????# | | ???????????? ###" "## ##??? ?????## | | ??????????????? ?#" ""#" ##???? #?##### | | ?????????????????# ## #### ###??### ? ### ### | | ????????????????## #??# #??## #? # | | ???????????????## #?## ##?## ##? # | | ??????????????## #?# ### ## ?# | | ??????????????# ##?## ## < #?????## | | ??????????????### #??## ### #?????# | | ????????????????# ##??# ## ####??## | | ???????????? ##???# #### #???# | | ????????? ?????# ###?## ##??# | | ????????# ### ?????# #### #### | | ????????? ???#### ?????## ## | | ??????????????????## #?????# ## | | ???????????????????##??????######## | | ??????????????????????????????????################ | | ?????????????????????????????????????????????????? | | ?????????????????????????????????????????????????? | | ?????????????????????????????????????????????????? | | ?????????????????????????????????????????????????? | | ?????????????????????????????????????????????????? | | ?????????????????????????????????????????????????? | | ?????????????????????????????????????????????????? | +----------------------------------------------------+ Best States ------------- Heat Dissipation 25 Energy Generation 15 Energy Capacity 250 Matter Stores 300 Matter Capacity 300 Sight Range 16 Terrain Scan Density 10 Evasion (%) 55 Recoil Reduction 2 Item Schematics ----------------- None Robot Schematics ------------------ None Fabricated ------------ Nothing Repaired ---------- Nothing Alien Tech Used ----------------- None Achievements -------------- None Challenges ------------ None Game ------ Seed SubdwellerLatentLegs Manual? 0 Play Time 00:15:06 Cumulative 27.9 hours Start 2025.05.29 @ 14:50:21 End 2025.05.29 @ 15:04:22 Sessions 1 Manual Loads 0 Difficulty Rogue Special Mode None Game No. 39 Rogue 39 Adventurer 0 Explorer 0 Win Type - Total 0 Types 0/0/0/0/0/0/0/0/0/0 Lore% 26 Gallery% 31 Achievement% 26 Wizard Run 0 Options --------- Layout 0 ASCII 0 Keyboard 0 Movement Mouse Keybinds 0 Fullscreen 1 Font 18/SmallcapsGlow Map View 76x50 Zoom Use 0% Tactical HUD 1 Map Filters NONE Filters NONE Steam 1 RUN: afb7bc98-c977-407b-8463-b1aae9f1af5f